{"text_format":"1","workbook":"xlsx","n_sheets":3,"sheets":["Hinweise","Buchungen","Kontenplan"],"not_rendered":{"charts":0,"images":23,"macros":1,"external_links":0,"defined_names":0,"comments":1,"pivot_tables":0},"unopened":[],"bounds":{"document_bytes":16777216,"sheet_cells":100000,"rows_first":2000,"rows_last":500,"rows_between":2000,"halvings":0,"cell_chars":16384,"cell_head_chars":4096},"cells_cut":0,"cells_raw":0,"read":"whole","date_system":"1900"}

{"sheet":"Hinweise","index":0,"n_rows":31,"n_cols":1,"rows_kept":31,"cut":false,"hidden":false,"merged":[[0,0,0,7],[4,0,4,1],[1,0,1,7],[2,0,2,7]]}
["Zeitliche Abgrenzung 3"]
["(Sonstige Forderungen, Sonstige Verbindlichkeiten)"]
["(Aktive und Passive Rechnungsabgrenzung)"]
[]
["Voraussetzungen"]
["Um den Geschäftsgang buchen zu können müssen Sie Kenntnisse über die folgenden Lehrninhalte haben:"]
["Erfolgskonten, Umsatzsteuer"]
["Zeitliche Abgrenzungen"]
["Sonstige Verbindlichkeiten"]
["Sonstige Forderung"]
["Aktive Rechnungsabgrenzung"]
["Passive Rechnungsabgrenzung"]
[]
["Vorgehensweise"]
["1. Wählen Sie die Tabelle \"Buchungen\"."]
[]
["2. Buchen Sie die Geschäftsvorfälle"]
["    entweder durch Direkteingabe in die entsprechenden Felder des Grundbuchs (Kontennummern und Beträge)"]
["    oder durch Aufruf von Buchungsfenstern. (Klicken Sie dazu jeweils auf die Schaltfläche \"Buchung\" und beenden"]
["    Sie die Eingabe  mit \"OK\".)"]
["    Die Kontennummern sind vierstellig anzugeben. (siehe Kontenplan). Bei zusammengesetzten Buchungssätzen"]
["    sind die Buchungen nach der Höhe der Beträge geordnet vorzunehmen. "]
[]
["3. Wenn Aufwendungen oder Erträge auf zwei Geschäftsjahre zu verteilen sind, können Sie die erforderlichen"]
["    Berechnungen in den grau hinterlegten Feldern durchführen."]
[]
["4. Sie können sich den Kontenplan mit Kontennummern jederzeit durch Klick auf den"]
["    entsprechenden Button anzeigen lassen."]
[]
["5. Die Richtigkeit Ihrer Buchungen wird bestätigt oder Sie werden auf"]
["    Fehler hingewiesen. (Ohne Buchung werden Fehler angezeigt.)"]

{"sheet":"Buchungen","index":1,"n_rows":136,"n_cols":7,"rows_kept":136,"cut":false,"hidden":false,"merged":[[135,6,136,6],[135,0,136,0],[135,1,136,1],[135,2,136,2],[135,3,136,3],[135,4,136,4],[135,5,136,5],[129,6,130,6],[131,0,132,0],[131,1,133,2],[131,3,132,3],[131,4,133,4],[131,5,131,6],[132,5,132,6],[133,5,133,6],[129,0,130,0],[129,1,130,1],[129,2,130,2],[129,3,130,3],[129,4,130,4],[129,5,130,5],[125,0,126,0],[125,1,127,2],[125,3,127,3],[125,4,127,4],[125,5,125,6],[126,5,126,6],[127,5,127,6],[123,0,124,0],[123,1,124,6],[90,0,91,0],[90,1,91,1],[90,2,91,2],[90,3,91,3],[99,0,100,0],[96,4,97,4],[96,5,96,6],[97,5,97,6],[84,0,85,0],[84,1,85,1],[90,4,91,4],[90,5,91,5],[86,0,87,0],[86,1,88,2],[86,3,88,3],[86,5,86,6],[87,4,88,4],[87,5,87,6],[88,5,88,6],[3,0,3,4],[42,0,43,0],[42,1,43,6],[44,0,45,0],[44,1,46,3],[44,4,46,4],[44,5,44,6],[45,5,45,6],[46,5,46,6],[27,0,28,0],[48,0,49,0],[48,1,49,1],[48,2,49,2],[27,1,28,1],[27,2,28,2],[33,2,34,2],[35,0,36,0],[35,1,37,2],[84,3,85,3],[48,3,49,3],[50,0,51,0],[50,1,52,2],[50,5,50,6],[51,5,51,6],[52,5,52,6],[48,4,49,4],[48,5,49,5],[48,6,49,6],[59,5,59,6],[84,6,85,6],[90,6,91,6],[99,2,100,2],[99,3,100,3],[99,4,100,4],[99,5,100,5],[99,6,100,6],[84,5,85,5],[84,2,85,2],[103,5,103,6],[54,0,55,0],[93,0,94,0],[93,1,94,6],[95,0,96,0],[95,1,97,2],[95,3,97,3],[95,5,95,6],[59,0,60,0],[59,1,61,2],[99,1,100,1],[105,4,106,4],[105,5,106,5],[105,6,106,6],[101,0,102,0],[101,1,103,2],[101,3,103,3],[101,5,101,6],[102,4,103,4],[102,5,102,6],[108,0,109,0],[108,1,109,6],[105,0,106,0],[105,1,106,1],[105,2,106,2],[105,3,106,3],[110,1,112,2],[110,3,112,3],[110,5,110,6],[111,4,112,4],[111,5,111,6],[112,5,112,6],[114,5,115,5],[114,6,115,6],[116,0,117,0],[116,1,118,2],[116,3,117,3],[116,5,116,6],[117,5,117,6],[118,5,118,6],[114,0,115,0],[114,1,115,1],[21,0,22,0],[21,1,22,6],[23,0,24,0],[23,1,25,2],[23,3,25,3],[23,4,25,4],[23,5,23,6],[24,5,24,6],[25,5,25,6],[27,3,28,3],[27,4,28,4],[29,0,30,0],[29,1,31,2],[29,3,31,3],[120,0,121,0],[114,4,115,4],[114,2,115,2],[114,3,115,3],[110,0,111,0],[27,5,28,5],[27,6,28,6],[33,6,34,6],[29,5,29,6],[30,4,31,4],[30,5,30,6],[31,5,31,6],[18,0,19,0],[39,4,40,4],[39,5,40,5],[33,4,34,4],[33,5,34,5],[35,3,37,3],[35,4,37,4],[35,5,35,6],[36,5,36,6],[37,5,37,6],[39,6,40,6],[39,0,40,0],[39,1,40,1],[39,2,40,2],[39,3,40,3],[33,1,34,1],[33,3,34,3],[33,0,34,0],[14,0,15,0],[14,1,16,2],[14,3,15,3],[14,5,14,6],[15,5,15,6],[16,5,16,6],[8,3,10,3],[12,4,13,4],[12,5,13,5],[6,0,7,0],[6,1,7,6],[12,6,13,6],[12,0,13,0],[12,3,13,3],[57,0,58,0],[57,1,58,6],[8,5,8,6],[9,4,10,4],[9,5,9,6],[10,5,10,6],[12,1,13,1],[12,2,13,2],[8,0,9,0],[8,1,10,2],[60,5,60,6],[61,5,61,6],[63,0,64,0],[65,0,66,0],[65,1,67,2],[65,3,67,3],[65,4,67,4],[65,5,65,6],[66,5,66,6],[67,5,67,6],[69,4,70,4],[69,5,70,5],[69,6,70,6],[72,0,73,0],[72,1,73,6],[69,0,70,0],[69,1,70,1],[69,2,70,2],[69,3,70,3],[80,3,82,3],[74,0,75,0],[74,1,76,2],[74,5,74,6],[75,5,75,6],[76,5,76,6],[1,0,1,4],[2,0,2,4],[84,4,85,4],[80,5,80,6],[81,4,82,4],[81,5,81,6],[82,5,82,6],[78,0,79,0],[80,0,81,0],[80,1,82,2]]}
[]
["Übungen zur zeitlichen Agrenzung"]
["3. Sonstige Forderungen, Sonstige Verbindlichkeiten"]
["Aktive und Passive Rechnungsabgrenzung"]
[null,null,null,null,null,null,0.19]
[]
["Geschäfts- vorfall 1","Die Zinsen für einen Darlehen mit einer Laufzeit vom 14. September bis 14. Februar des nächsten Jahres, werden von uns am 15. Februar überwiesen. Darlehenssumme: 24.000,00 €, Zinssatz: 4,5%"]
[]
["31.12.","Buchung zum Jahresabschluss.",null,"Zinsanteil für das alte Geschäftsjahr","Berechnungen",{"$f":"IF(AND(B13=\"7510\",E13=\"4890\"),\"Die Konten sind richtig!\",\"Mindestens ein Konto ist falsch!\")","v":"Mindestens ein Konto ist falsch!"}]
[null,null,null,null,null,{"$f":"IF(AND(D13=318,G13=318),\"Die Beträge sind richtig!\",\"Mindestens ein Betrag ist falsch!\")","v":"Mindestens ein Betrag ist falsch!"}]
[null,null,null,null,null,{"$f":"IF(AND(F9=\"Die Konten sind richtig!\",F10=\"Die Beträge sind richtig!\"),\"Alles richtig!\",\"Es sind noch Fehler vorhanden!\")","v":"Es sind noch Fehler vorhanden!"}]
[1,"Soll","Konto","€","Haben","Konto","€"]
["Buchungssatz","",{"$f":"IF(B13=\"\",\"\",VLOOKUP(B13,Kontenplan!$A$3:$B$24,2))","v":""},null,"",{"$f":"IF(E13=\"\",\"\",VLOOKUP(E13,Kontenplan!$A$3:$B$24,2))","v":""}]
[]
["01.03.","Buchung im neuen Geschäftsjahr.",null,"Anteil neues Geschäftsjahr","Berechnungen",{"$f":"IF(AND(B19=\"4890\",B20=\"7510\",E19=\"2800\"),\"Die Konten sind richtig!\",\"Mindestens ein Konto ist falsch!\")","v":"Mindestens ein Konto ist falsch!"}]
[null,null,null,null,null,{"$f":"IF(AND(D19=318,D20=132,G19=450),\"Die Beträge sind richtig!\",\"Mindestens ein Betrag ist falsch!\")","v":"Mindestens ein Betrag ist falsch!"}]
[null,null,null,"Gesamtanteil",null,{"$f":"IF(AND(F15=\"Die Konten sind richtig!\",F16=\"Die Beträge sind richtig!\"),\"Alles richtig!\",\"Es sind noch Fehler vorhanden!\")","v":"Es sind noch Fehler vorhanden!"}]
[2,"Soll","Konto","€","Haben","Konto","€"]
["Buchungssatz","",{"$f":"IF(B19=\"\",\"\",VLOOKUP(B19,Kontenplan!$A$3:$B$24,2))","v":""},null,"",{"$f":"IF(E19=\"\",\"\",VLOOKUP(E19,Kontenplan!$A$3:$B$24,2))","v":""}]
[null,"",{"$f":"IF(B20=\"\",\"\",VLOOKUP(B20,Kontenplan!$A$3:$B$24,2))","v":""},null,null,{"$f":"IF(E20=\"\",\"\",VLOOKUP(E20,Kontenplan!$A$3:$B$24,2))","v":""}]
[]
["Geschäfts- vorfall 2","Unsere Versicherungsgesellschaft bucht die Gebäudeversicherung für eine Fertigungshalle am 01.08. für ein Jahr im voraus von unserem Bankkonto ab, 2.160,00 €."]
[]
["01.08.","Buchung bei Überweisung der Versicherung",null,null,2160,{"$f":"IF(AND(B28=\"6900\",E28=\"2800\"),\"Die Konten sind richtig!\",\"Mindestens ein Konto ist falsch!\")","v":"Mindestens ein Konto ist falsch!"}]
[null,null,null,null,null,{"$f":"IF(AND(D28=2160,G28=2160),\"Die Beträge sind richtig!\",\"Mindestens ein Betrag ist falsch!\")","v":"Mindestens ein Betrag ist falsch!"}]
[null,null,null,null,null,{"$f":"IF(AND(F24=\"Die Konten sind richtig!\",F25=\"Die Beträge sind richtig!\"),\"Alles richtig!\",\"Es sind noch Fehler vorhanden!\")","v":"Es sind noch Fehler vorhanden!"}]
[3,"Soll","Konto","€","Haben","Konto","€"]
["Buchungssatz","",{"$f":"IF(B28=\"\",\"\",VLOOKUP(B28,Kontenplan!$A$3:$B$24,2))","v":""},null,"",{"$f":"IF(E28=\"\",\"\",VLOOKUP(E28,Kontenplan!$A$3:$B$24,2))","v":""}]
[]
["31.12.","Buchung zum Jahresabschluss",null,"Versicherungs- anteil für das neue Jahr","Berechnungen",{"$f":"IF(AND(B34=\"2900\",E34=\"6900\"),\"Die Konten sind richtig!\",\"Mindestens ein Konto ist falsch!\")","v":"Mindestens ein Konto ist falsch!"}]
[null,null,null,null,null,{"$f":"IF(AND(D34=1260,G34=1260),\"Die Beträge sind richtig!\",\"Mindestens ein Betrag ist falsch!\")","v":"Mindestens ein Betrag ist falsch!"}]
[null,null,null,null,null,{"$f":"IF(AND(F30=\"Die Konten sind richtig!\",F31=\"Die Beträge sind richtig!\"),\"Alles richtig!\",\"Es sind noch Fehler vorhanden!\")","v":"Es sind noch Fehler vorhanden!"}]
[4,"Soll","Konto","€","Haben","Konto","€"]
["Buchungssatz","",{"$f":"IF(B34=\"\",\"\",VLOOKUP(B34,Kontenplan!$A$3:$B$24,2))","v":""},null,"",{"$f":"IF(E34=\"\",\"\",VLOOKUP(E34,Kontenplan!$A$3:$B$24,2))","v":""}]
[]
["01.01.","Buchung im neuen Geschäftsjahr",null,"Versicherungs- anteil für das neue Jahr",null,{"$f":"IF(AND(B40=\"6900\",E40=\"2900\"),\"Die Konten sind richtig!\",\"Mindestens ein Konto ist falsch!\")","v":"Mindestens ein Konto ist falsch!"}]
[null,null,null,null,null,{"$f":"IF(AND(D40=1260,G40=1260),\"Die Beträge sind richtig!\",\"Mindestens ein Betrag ist falsch!\")","v":"Mindestens ein Betrag ist falsch!"}]
[null,null,null,null,null,{"$f":"IF(AND(F36=\"Die Konten sind richtig!\",F37=\"Die Beträge sind richtig!\"),\"Alles richtig!\",\"Es sind noch Fehler vorhanden!\")","v":"Es sind noch Fehler vorhanden!"}]
[5,"Soll","Konto","€","Haben","Konto","€"]
["Buchungssatz","",{"$f":"IF(B40=\"\",\"\",VLOOKUP(B40,Kontenplan!$A$3:$B$24,2))","v":""},null,"",{"$f":"IF(E40=\"\",\"\",VLOOKUP(E40,Kontenplan!$A$3:$B$24,2))","v":""}]
[]
[]
["Geschäfts- vorfall 3","Eine Rechnung für Wartungsarbeiten, die im November durchgeführt wurden, trifft durch einen Fehler des Handwerksbetriebes erst am 15.3. des nächsten Jahres ein, netto 960,00 €. (Vorsteuerverrechnung bei Rechnungseingang)"]
[]
["31.12.","Buchung zum Jahresabschluss.",null,null,960,{"$f":"IF(AND(B49=\"6160\",E49=\"4890\"),\"Die Konten sind richtig!\",\"Mindestens ein Konto ist falsch!\")","v":"Mindestens ein Konto ist falsch!"}]
[null,null,null,null,null,{"$f":"IF(AND(D49=E45,G49=E45),\"Die Beträge sind richtig!\",\"Mindestens ein Betrag ist falsch!\")","v":"Mindestens ein Betrag ist falsch!"}]
[null,null,null,null,null,{"$f":"IF(AND(F45=\"Die Konten sind richtig!\",F46=\"Die Beträge sind richtig!\"),\"Alles richtig!\",\"Es sind noch Fehler vorhanden!\")","v":"Es sind noch Fehler vorhanden!"}]
[6,"Soll","Konto","€","Haben","Konto","€"]
["Buchungssatz","",{"$f":"IF(B49=\"\",\"\",VLOOKUP(B49,Kontenplan!$A$3:$B$24,2))","v":""},null,"",{"$f":"IF(E49=\"\",\"\",VLOOKUP(E49,Kontenplan!$A$3:$B$24,2))","v":""}]
[]
["15.03.","Buchung im neuen Geschäftsjahr.",null,"netto",960,{"$f":"IF(AND(B55=\"4890\",B56=\"2600\",E55=\"4400\"),\"Die Konten sind richtig!\",\"Mindestens ein Konto ist falsch!\")","v":"Mindestens ein Konto ist falsch!"}]
[null,null,null,"UmSt",{"$f":"ROUND(E51*G5,2)","v":182.4},{"$f":"IF(AND(D55=E51,D56=E52,G55=E53),\"Die Beträge sind richtig!\",\"Mindestens ein Betrag ist falsch!\")","v":"Mindestens ein Betrag ist falsch!"}]
[null,null,null,"brutto",{"$f":"E51+E52","v":1142.4000000000001},{"$f":"IF(AND(F51=\"Die Konten sind richtig!\",F52=\"Die Beträge sind richtig!\"),\"Alles richtig!\",\"Es sind noch Fehler vorhanden!\")","v":"Es sind noch Fehler vorhanden!"}]
[7,"Soll","Konto","€","Haben","Konto","€"]
["Buchungssatz","",{"$f":"IF(B55=\"\",\"\",VLOOKUP(B55,Kontenplan!$A$3:$B$24,2))","v":""},null,"",{"$f":"IF(E55=\"\",\"\",VLOOKUP(E55,Kontenplan!$A$3:$B$24,2))","v":""}]
[null,"",{"$f":"IF(B56=\"\",\"\",VLOOKUP(B56,Kontenplan!$A$3:$B$24,2))","v":""},null,null,{"$f":"IF(E56=\"\",\"\",VLOOKUP(E56,Kontenplan!$A$3:$B$24,2))","v":""}]
[]
["Geschäfts- vorfall 4","Am 1.12. wird die Kraftfahrzeugsteuer von uns für ein Jahr im voraus (Dezember bis November) mit der Bank überwiesen, 1.488,00 €. Die Abgrenzung erfolgt bei der Überweisung."]
[]
["01.12.","Buchung bei Überweisung der Kraftfahrzeugsteuer",null,"Anteile","Berechnungen",{"$f":"IF(AND(B64=\"2900\",B65=\"7030\",E64=\"2800\"),\"Die Konten sind richtig!\",\"Mindestens ein Konto ist falsch!\")","v":"Mindestens ein Konto ist falsch!"}]
[null,null,null,"neues Jahr",null,{"$f":"IF(AND(D64=1364,D65=124,G64=1488),\"Die Beträge sind richtig!\",\"Mindestens ein Betrag ist falsch!\")","v":"Mindestens ein Betrag ist falsch!"}]
[null,null,null,"altes Jahr",null,{"$f":"IF(AND(F60=\"Die Konten sind richtig!\",F61=\"Die Beträge sind richtig!\"),\"Alles richtig!\",\"Es sind noch Fehler vorhanden!\")","v":"Es sind noch Fehler vorhanden!"}]
[8,"Soll","Konto","€","Haben","Konto","€"]
["Buchungssatz","",{"$f":"IF(B64=\"\",\"\",VLOOKUP(B64,Kontenplan!$A$3:$B$24,2))","v":""},null,"",{"$f":"IF(E64=\"\",\"\",VLOOKUP(E64,Kontenplan!$A$3:$B$24,2))","v":""}]
[null,"",{"$f":"IF(B65=\"\",\"\",VLOOKUP(B65,Kontenplan!$A$3:$B$24,2))","v":""}]
["01.01.","Buchung im neuen Geschäftsjahr",null,"Kfz.-Steuer für das neue Geschäftsjahr",null,{"$f":"IF(AND(B70=\"7030\",E70=\"2900\"),\"Die Konten sind richtig!\",\"Mindestens ein Konto ist falsch!\")","v":"Mindestens ein Konto ist falsch!"}]
[null,null,null,null,null,{"$f":"IF(AND(D70=1364,G70=1364),\"Die Beträge sind richtig!\",\"Mindestens ein Betrag ist falsch!\")","v":"Mindestens ein Betrag ist falsch!"}]
[null,null,null,null,null,{"$f":"IF(AND(F66=\"Die Konten sind richtig!\",F67=\"Die Beträge sind richtig!\"),\"Alles richtig!\",\"Es sind noch Fehler vorhanden!\")","v":"Es sind noch Fehler vorhanden!"}]
[9,"Soll","Konto","€","Haben","Konto","€"]
["Buchungssatz","",{"$f":"IF(B70=\"\",\"\",VLOOKUP(B70,Kontenplan!$A$3:$B$24,2))","v":""},null,"",{"$f":"IF(E70=\"\",\"\",VLOOKUP(E70,Kontenplan!$A$3:$B$24,2))","v":""}]
[]
[]
["Geschäfts- vorfall 5","Die Wartungskosten für die Fotokopierer werden von uns halbjährlich im voraus am 1.11. durch Banküberweisung beglichen, brutto  871,08 €. (Die Vorsteuer ist bei Rechnungseingang am 1.11. zu erfassen.)"]
[]
["01.12.","Banküberweisung der Wartungskosten",null,"netto",null,{"$f":"IF(AND(B79=\"6160\",B80=\"2600\",E79=\"2800\"),\"Die Konten sind richtig!\",\"Mindestens ein Konto ist falsch!\")","v":"Mindestens ein Konto ist falsch!"}]
[null,null,null,"UmSt",null,{"$f":"IF(AND(D79=732,D80=139.08,G79=871.08),\"Die Beträge sind richtig!\",\"Mindestens ein Betrag ist falsch!\")","v":"Mindestens ein Betrag ist falsch!"}]
[null,null,null,"brutto",{"$f":"E75+E76","v":0},{"$f":"IF(AND(F75=\"Die Konten sind richtig!\",F76=\"Die Beträge sind richtig!\"),\"Alles richtig!\",\"Es sind noch Fehler vorhanden!\")","v":"Es sind noch Fehler vorhanden!"}]
[10,"Soll","Konto","€","Haben","Konto","€"]
["Buchungssatz","",{"$f":"IF(B79=\"\",\"\",VLOOKUP(B79,Kontenplan!$A$3:$B$24,2))","v":""},null,"",{"$f":"IF(E79=\"\",\"\",VLOOKUP(E79,Kontenplan!$A$3:$B$24,2))","v":""}]
[null,"",{"$f":"IF(B80=\"\",\"\",VLOOKUP(B80,Kontenplan!$A$3:$B$24,2))","v":""},null,null,{"$f":"IF(E80=\"\",\"\",VLOOKUP(E80,Kontenplan!$A$3:$B$24,2))","v":""}]
["31.12.","Buchung zum Jahresabschluss",null,"Wartungsanteil für das neue Geschäftsjahr","Berechnungen",{"$f":"IF(AND(B85=\"2900\",E85=\"6160\"),\"Die Konten sind richtig!\",\"Mindestens ein Konto ist falsch!\")","v":"Mindestens ein Konto ist falsch!"}]
[null,null,null,null,null,{"$f":"IF(AND(D85=488,G85=488),\"Die Beträge sind richtig!\",\"Mindestens ein Betrag ist falsch!\")","v":"Mindestens ein Betrag ist falsch!"}]
[null,null,null,null,null,{"$f":"IF(AND(F81=\"Die Konten sind richtig!\",F82=\"Die Beträge sind richtig!\"),\"Alles richtig!\",\"Es sind noch Fehler vorhanden!\")","v":"Es sind noch Fehler vorhanden!"}]
[11,"Soll","Konto","€","Haben","Konto","€"]
["Buchungssatz","",{"$f":"IF(B85=\"\",\"\",VLOOKUP(B85,Kontenplan!$A$3:$B$24,2))","v":""},null,"",{"$f":"IF(E85=\"\",\"\",VLOOKUP(E85,Kontenplan!$A$3:$B$24,2))","v":""}]
[]
["01.01.","Buchung im neuen Geschäftsjahr",null,"Anteil für das neue Geschäftsjahr","Berechnungen",{"$f":"IF(AND(B91=\"6160\",E91=\"2900\"),\"Die Konten sind richtig!\",\"Mindestens ein Konto ist falsch!\")","v":"Mindestens ein Konto ist falsch!"}]
[null,null,null,null,null,{"$f":"IF(AND(D91=488,G91=488),\"Die Beträge sind richtig!\",\"Mindestens ein Betrag ist falsch!\")","v":"Mindestens ein Betrag ist falsch!"}]
[null,null,null,null,null,{"$f":"IF(AND(F87=\"Die Konten sind richtig!\",F88=\"Die Beträge sind richtig!\"),\"Alles richtig!\",\"Es sind noch Fehler vorhanden!\")","v":"Es sind noch Fehler vorhanden!"}]
[12,"Soll","Konto","€","Haben","Konto","€"]
["Buchungssatz","",{"$f":"IF(B91=\"\",\"\",VLOOKUP(B91,Kontenplan!$A$3:$B$24,2))","v":""},null,"",{"$f":"IF(E91=\"\",\"\",VLOOKUP(E91,Kontenplan!$A$3:$B$24,2))","v":""}]
[]
[]
["Geschäfts- vorfall 6","Eine Fahrradverein mietet eine von uns nicht mehr genutzte Werkstatt für monatlich 120,00 €. Die Miete für Okt. bis Dez. wird erst nach der Jahresabschlussfeier des Vereins am 5.1. des nächsten Jahres bar gezahlt."]
[]
["31.12.","Buchung zum Jahresabschluss.",null,"Gesamtmiete Oktober bis Dezember","Berechnungen",{"$f":"IF(AND(B100=\"2690\",E100=\"5400\"),\"Die Konten sind richtig!\",\"Mindestens ein Konto ist falsch!\")","v":"Mindestens ein Konto ist falsch!"}]
[null,null,null,null,null,{"$f":"IF(AND(D100=360,G100=360),\"Die Beträge sind richtig!\",\"Mindestens ein Betrag ist falsch!\")","v":"Mindestens ein Betrag ist falsch!"}]
[null,null,null,null,null,{"$f":"IF(AND(F96=\"Die Konten sind richtig!\",F97=\"Die Beträge sind richtig!\"),\"Alles richtig!\",\"Es sind noch Fehler vorhanden!\")","v":"Es sind noch Fehler vorhanden!"}]
[13,"Soll","Konto","€","Haben","Konto","€"]
["Buchungssatz","",{"$f":"IF(B100=\"\",\"\",VLOOKUP(B100,Kontenplan!$A$3:$B$24,2))","v":""},null,"",{"$f":"IF(E100=\"\",\"\",VLOOKUP(E100,Kontenplan!$A$3:$B$24,2))","v":""}]
[]
["05.01.","Buchung im neuen Geschäftsjahr.",null,"Gesamtmiete Oktober bis Dezember","Berechnungen",{"$f":"IF(AND(B106=\"2880\",E106=\"2690\"),\"Die Konten sind richtig!\",\"Mindestens ein Konto ist falsch!\")","v":"Mindestens ein Konto ist falsch!"}]
[null,null,null,null,null,{"$f":"IF(AND(D106=360,G106=360),\"Die Beträge sind richtig!\",\"Mindestens ein Betrag ist falsch!\")","v":"Mindestens ein Betrag ist falsch!"}]
[null,null,null,null,null,{"$f":"IF(AND(F102=\"Die Konten sind richtig!\",F103=\"Die Beträge sind richtig!\"),\"Alles richtig!\",\"Es sind noch Fehler vorhanden!\")","v":"Es sind noch Fehler vorhanden!"}]
[14,"Soll","Konto","€","Haben","Konto","€"]
["Buchungssatz","",{"$f":"IF(B106=\"\",\"\",VLOOKUP(B106,Kontenplan!$A$3:$B$24,2))","v":""},null,"",{"$f":"IF(E106=\"\",\"\",VLOOKUP(E106,Kontenplan!$A$3:$B$24,2))","v":""}]
[]
[]
["Geschäfts- vorfall 7","Ein Darlehnsschuldner zahlt an uns die Zinsen für Oktober bis Februar erst am 1.3. des nächsten Jahres durch Banküberweisung. Höhe der Schuld: 12.000,00 €, Zinssatz: 6%."]
[]
["31.12.","Buchung zum Jahresabschluss.",null,"Zinsen für alltes Geschäftsjahr","Berechnungen",{"$f":"IF(AND(B115=\"2690\",E115=\"5710\"),\"Die Konten sind richtig!\",\"Mindestens ein Konto ist falsch!\")","v":"Mindestens ein Konto ist falsch!"}]
[null,null,null,null,null,{"$f":"IF(AND(D115=180,G115=180),\"Die Beträge sind richtig!\",\"Mindestens ein Betrag ist falsch!\")","v":"Mindestens ein Betrag ist falsch!"}]
[null,null,null,null,null,{"$f":"IF(AND(F111=\"Die Konten sind richtig!\",F112=\"Die Beträge sind richtig!\"),\"Alles richtig!\",\"Es sind noch Fehler vorhanden!\")","v":"Es sind noch Fehler vorhanden!"}]
[15,"Soll","Konto","€","Haben","Konto","€"]
["Buchungssatz","",{"$f":"IF(B115=\"\",\"\",VLOOKUP(B115,Kontenplan!$A$3:$B$24,2))","v":""},null,"",{"$f":"IF(E115=\"\",\"\",VLOOKUP(E115,Kontenplan!$A$3:$B$24,2))","v":""}]
[]
["01.03.","Buchung im neuen Geschäftsjahr.",null,"Zinsen neues Geschäftsjahr","Berechnungen",{"$f":"IF(AND(B121=\"2800\",E121=\"2690\",E122=\"5710\"),\"Die Konten sind richtig!\",\"Mindestens ein Konto ist falsch!\")","v":"Mindestens ein Konto ist falsch!"}]
[null,null,null,null,null,{"$f":"IF(AND(D121=300,G121=180,G122=120),\"Die Beträge sind richtig!\",\"Mindestens ein Betrag ist falsch!\")","v":"Mindestens ein Betrag ist falsch!"}]
[null,null,null,"Gesamtzinsen",null,{"$f":"IF(AND(F117=\"Die Konten sind richtig!\",F118=\"Die Beträge sind richtig!\"),\"Alles richtig!\",\"Es sind noch Fehler vorhanden!\")","v":"Es sind noch Fehler vorhanden!"}]
[16,"Soll","Konto","€","Haben","Konto","€"]
["Buchungssatz","",{"$f":"IF(B121=\"\",\"\",VLOOKUP(B121,Kontenplan!$A$3:$B$24,2))","v":""},null,"",{"$f":"IF(E121=\"\",\"\",VLOOKUP(E121,Kontenplan!$A$3:$B$24,2))","v":""}]
[null,null,{"$f":"IF(B122=\"\",\"\",VLOOKUP(B122,Kontenplan!$A$3:$B$24,2))","v":""},null,"",{"$f":"IF(E122=\"\",\"\",VLOOKUP(E122,Kontenplan!$A$3:$B$24,2))","v":""}]
[]
["Geschäfts- vorfall 8","Wir erhalten die Miete für Januar bereits am 24.12. durch Banküberweisung, 840,00 €. Die Abgrenzung wird direkt am 24.12. vorgenommen."]
[]
["24.12.","Buchung bei Überweisung der Miete",null,null,840,{"$f":"IF(AND(B130=\"2800\",E130=\"4900\"),\"Die Konten sind richtig!\",\"Mindestens ein Konto ist falsch!\")","v":"Mindestens ein Konto ist falsch!"}]
[null,null,null,null,null,{"$f":"IF(AND(D130=840,G130=840),\"Die Beträge sind richtig!\",\"Mindestens ein Betrag ist falsch!\")","v":"Mindestens ein Betrag ist falsch!"}]
[null,null,null,null,null,{"$f":"IF(AND(F126=\"Die Konten sind richtig!\",F127=\"Die Beträge sind richtig!\"),\"Alles richtig!\",\"Es sind noch Fehler vorhanden!\")","v":"Es sind noch Fehler vorhanden!"}]
[17,"Soll","Konto","€","Haben","Konto","€"]
["Buchungssatz","",{"$f":"IF(B130=\"\",\"\",VLOOKUP(B130,Kontenplan!$A$3:$B$24,2))","v":""},null,"",{"$f":"IF(E130=\"\",\"\",VLOOKUP(E130,Kontenplan!$A$3:$B$24,2))","v":""}]
[]
["01.01.","Buchung im neuen Geschäftsjahr",null,null,840,{"$f":"IF(AND(B136=\"4900\",E136=\"5400\"),\"Die Konten sind richtig!\",\"Mindestens ein Konto ist falsch!\")","v":"Mindestens ein Konto ist falsch!"}]
[null,null,null,null,null,{"$f":"IF(AND(D136=840,G136=840),\"Die Beträge sind richtig!\",\"Mindestens ein Betrag ist falsch!\")","v":"Mindestens ein Betrag ist falsch!"}]
[null,null,null,null,null,{"$f":"IF(AND(F132=\"Die Konten sind richtig!\",F133=\"Die Beträge sind richtig!\"),\"Alles richtig!\",\"Es sind noch Fehler vorhanden!\")","v":"Es sind noch Fehler vorhanden!"}]
[18,"Soll","Konto","€","Haben","Konto","€"]
["Buchungssatz","",{"$f":"IF(B136=\"\",\"\",VLOOKUP(B136,Kontenplan!$A$3:$B$24,2))","v":""},null,"",{"$f":"IF(E136=\"\",\"\",VLOOKUP(E136,Kontenplan!$A$3:$B$24,2))","v":""}]

{"sheet":"Kontenplan","index":2,"n_rows":24,"n_cols":2,"rows_kept":24,"cut":false,"hidden":false,"merged":[]}
[null,"Kontenplan"]
[]
["Nr.","Konto"]
["2400","Forderungen a.L.u.L."]
["2600","Vorsteuer"]
["2690","Sonstige Forderungen"]
["2800","Kreditinstitute/Bank"]
["2880","Kasse"]
["2900","Aktive Rechnungsabgrenzung"]
["4200","Verbindlichkeiten g. Kreditinstituten"]
["4400","Verbindlichkeiten a.L.u.L."]
["4800","Umsatzsteuer"]
["4890","Sonstige Verbindlichkeiten"]
["4900","Passive Rechnungsabgrenzung"]
["5000","Umsatzerlöse"]
["5400","Mieterträge"]
["5710","Zinserträge"]
["6160","Fremdinstandhaltung"]
["6700","Mietaufwendungen"]
["6710","Leasingaufwendungen"]
["6900","Versicherungsbeiträge"]
["7000","Betriebliche Steuern"]
["7030","Kraftfahrzeugsteuer"]
["7510","Zinsaufwendungen"]